[Event "Titled Tuesday Blitz May 16 Early 2023"]
[White "Nguyen, Ngoc Truong Son"]
[Black "Wagner, Dennis"]
[WhiteFideId "12401110"]
[BlackFideId "24650684"]
[WhiteElo "2556"]
[BlackElo "2478"]
[Result "0-1"]
[Round "07"]
[TimeControl "180+2"]
[Date "2023.05.16"]
[WhiteClock "0:00:00"]
[BlackClock "0:00:03"]

1. d4 {[%clk 0:02:57]}  Nf6 {[%clk 0:03:00]} 2. Nf3 {[%clk 0:02:57]}  d5 {[%clk 0:02:59]} 3. Bf4 {[%clk 0:02:57]}  e6 {[%clk 0:02:59]} 4. e3 {[%clk 0:02:57]}  c5 {[%clk 0:02:59]} 5. Nbd2 {[%clk 0:02:56]}  Qb6 {[%clk 0:02:58]} 6. Rb1 {[%clk 0:02:55]}  Bd6 {[%clk 0:02:57]} 7. Bg3 {[%clk 0:02:55]}  O-O {[%clk 0:02:30]} 8. c3 {[%clk 0:02:46]}  Nbd7 {[%clk 0:02:17]} 9. Bd3 {[%clk 0:02:43]}  Qc7 {[%clk 0:02:17]} 10. e4 {[%clk 0:02:24]}  cxd4 {[%clk 0:02:10]} 11. cxd4 {[%clk 0:02:11]}  dxe4 {[%clk 0:01:59]} 12. Nxe4 {[%clk 0:02:11]}  Nxe4 {[%clk 0:01:57]} 13. Bxe4 {[%clk 0:02:11]}  Nf6 {[%clk 0:01:34]} 14. Bd3 {[%clk 0:02:10]}  Qa5+ {[%clk 0:01:26]} 15. Kf1 {[%clk 0:02:10]}  Rd8 {[%clk 0:01:21]} 16. Bh4 {[%clk 0:01:34]}  Be7 {[%clk 0:01:17]} 17. Qc2 {[%clk 0:01:32]}  b6 {[%clk 0:01:07]} 18. Bxf6 {[%clk 0:00:37]}  Bxf6 {[%clk 0:01:06]} 19. Bxh7+ {[%clk 0:00:38]}  Kf8 {[%clk 0:01:00]} 20. h4 {[%clk 0:00:37]}  Ba6+ {[%clk 0:00:59]} 21. Bd3 {[%clk 0:00:30]}  Rac8 {[%clk 0:00:56]} 22. Qe2 {[%clk 0:00:29]}  Qxa2 {[%clk 0:00:49]} 23. Rd1 {[%clk 0:00:12]}  Bxd3 {[%clk 0:00:49]} 24. Qxd3 {[%clk 0:00:12]}  Qxb2 {[%clk 0:00:49]} 25. g4 {[%clk 0:00:11]}  Rc2 {[%clk 0:00:31]} 26. Rh2 {[%clk 0:00:09]}  a5 {[%clk 0:00:25]} 27. g5 {[%clk 0:00:09]}  Be7 {[%clk 0:00:25]} 28. h5 {[%clk 0:00:09]}  Rc3 {[%clk 0:00:17]} 29. Qe4 {[%clk 0:00:08]}  Bxg5 {[%clk 0:00:15]} 30. Nxg5 {[%clk 0:00:06]}  Qb5+ {[%clk 0:00:16]} 31. Ke1 {[%clk 0:00:04]}  Qxg5 {[%clk 0:00:16]} 32. h6 {[%clk 0:00:04]}  Qg1+ {[%clk 0:00:14]} 33. Kd2 {[%clk 0:00:04]}  Qxh2 {[%clk 0:00:12]} 34. hxg7+ {[%clk 0:00:05]}  Kxg7 {[%clk 0:00:09]} 35. Kxc3 {[%clk 0:00:06]}  Qxf2 {[%clk 0:00:08]} 36. Qc6 {[%clk 0:00:04]}  Rd5 {[%clk 0:00:07]} 37. Rd2 {[%clk 0:00:03]}  Qe3+ {[%clk 0:00:07]} 38. Kc2 {[%clk 0:00:02]}  a4 {[%clk 0:00:07]} 39. Qxb6 {[%clk 0:00:02]}  a3 {[%clk 0:00:05]} 40. Qa7 {[%clk 0:00:02]}  Rg5 {[%clk 0:00:03]} 41. Qa8 {[%clk 0:00:01]}  Rg3 {[%clk 0:00:02]} 42. d5 {[%clk 0:00:00]}  Qb3+ {[%clk 0:00:03]} 0-1


[Site "https://www.chess.com"]

[Event "Titled Tuesday Blitz May 16 Early 2023"]
[White "Sieciechowicz, Marcin"]
[Black "Yeletsky, Ivan"]
[WhiteFideId "1130170"]
[BlackFideId "24180327"]
[WhiteElo "2302"]
[BlackElo "2380"]
[Result "0-1"]
[Round "07"]
[TimeControl "180+2"]
[Date "2023.05.16"]
[WhiteClock "0:00:11"]
[BlackClock "0:00:07"]

1. d4 {[%clk 0:03:00]}  Nf6 {[%clk 0:02:59]} 2. c4 {[%clk 0:03:01]}  e6 {[%clk 0:02:59]} 3. Nc3 {[%clk 0:03:01]}  Bb4 {[%clk 0:02:59]} 4. Qc2 {[%clk 0:03:02]}  O-O {[%clk 0:02:58]} 5. Nf3 {[%clk 0:03:01]}  d5 {[%clk 0:02:52]} 6. cxd5 {[%clk 0:03:01]}  exd5 {[%clk 0:02:53]} 7. Bf4 {[%clk 0:03:01]}  c5 {[%clk 0:02:52]} 8. dxc5 {[%clk 0:03:02]}  Qa5 {[%clk 0:02:47]} 9. Bd2 {[%clk 0:02:49]}  Nc6 {[%clk 0:02:37]} 10. e3 {[%clk 0:02:49]}  Qxc5 {[%clk 0:02:29]} 11. a3 {[%clk 0:02:47]}  d4 {[%clk 0:02:09]} 12. Nxd4 {[%clk 0:02:35]}  Nxd4 {[%clk 0:02:06]} 13. exd4 {[%clk 0:02:36]}  Qe7+ {[%clk 0:02:02]} 14. Be2 {[%clk 0:02:26]}  Bxc3 {[%clk 0:02:01]} 15. bxc3 {[%clk 0:02:21]}  Re8 {[%clk 0:02:01]} 16. Be3 {[%clk 0:02:21]}  Nd5 {[%clk 0:01:58]} 17. Qd2 {[%clk 0:02:08]}  Bf5 {[%clk 0:01:28]} 18. O-O {[%clk 0:01:56]}  Rac8 {[%clk 0:01:28]} 19. Bb5 {[%clk 0:01:29]}  Bd7 {[%clk 0:01:22]} 20. Bxd7 {[%clk 0:01:18]}  Qxd7 {[%clk 0:01:23]} 21. Rac1 {[%clk 0:01:14]}  Qa4 {[%clk 0:01:09]} 22. Qb2 {[%clk 0:01:14]}  b5 {[%clk 0:01:06]} 23. Bd2 {[%clk 0:01:14]}  Nb6 {[%clk 0:00:56]} 24. Qc2 {[%clk 0:01:01]}  Re2 {[%clk 0:00:51]} 25. Qxa4 {[%clk 0:00:30]}  bxa4 {[%clk 0:00:52]} 26. Be3 {[%clk 0:00:24]}  Nc4 {[%clk 0:00:51]} 27. Rfe1 {[%clk 0:00:20]}  Rxe1+ {[%clk 0:00:39]} 28. Rxe1 {[%clk 0:00:21]}  Nxa3 {[%clk 0:00:40]} 29. Kf1 {[%clk 0:00:21]}  h5 {[%clk 0:00:33]} 30. d5 {[%clk 0:00:17]}  Rxc3 {[%clk 0:00:32]} 31. Bxa7 {[%clk 0:00:16]}  Nb5 {[%clk 0:00:29]} 32. Bb8 {[%clk 0:00:14]}  Rd3 {[%clk 0:00:23]} 33. Ra1 {[%clk 0:00:11]}  Rxd5 {[%clk 0:00:20]} 34. Bf4 {[%clk 0:00:06]}  a3 {[%clk 0:00:20]} 35. Ke1 {[%clk 0:00:05]}  f6 {[%clk 0:00:15]} 36. Bc1 {[%clk 0:00:06]}  Rd3 {[%clk 0:00:15]} 37. Ke2 {[%clk 0:00:06]}  Rb3 {[%clk 0:00:13]} 38. Kd1 {[%clk 0:00:05]}  Kf7 {[%clk 0:00:11]} 39. Be3 {[%clk 0:00:05]}  Ke6 {[%clk 0:00:07]} 40. Kc2 {[%clk 0:00:05]}  Rc3+ {[%clk 0:00:08]} 41. Kd2 {[%clk 0:00:06]}  Kd5 {[%clk 0:00:09]} 42. Rb1 {[%clk 0:00:05]}  Kc4 {[%clk 0:00:03]} 43. Rxb5 {[%clk 0:00:05]}  Rd3+ {[%clk 0:00:03]} 44. Kc2 {[%clk 0:00:06]}  Rxe3 {[%clk 0:00:04]} 45. Ra5 {[%clk 0:00:06]}  Re2+ {[%clk 0:00:04]} 46. Kd1 {[%clk 0:00:06]}  Rxf2 {[%clk 0:00:05]} 47. Rxa3 {[%clk 0:00:07]}  Rxg2 {[%clk 0:00:05]} 48. Rh3 {[%clk 0:00:07]}  g6 {[%clk 0:00:04]} 49. Ke1 {[%clk 0:00:08]}  Kd5 {[%clk 0:00:04]} 50. Kf1 {[%clk 0:00:09]}  Rg5 {[%clk 0:00:05]} 51. Rd3+ {[%clk 0:00:09]}  Ke6 {[%clk 0:00:05]} 52. Rd8 {[%clk 0:00:10]}  Kf5 {[%clk 0:00:04]} 53. Rd4 {[%clk 0:00:10]}  Rg4 {[%clk 0:00:04]} 54. Rd5+ {[%clk 0:00:10]}  Ke6 {[%clk 0:00:05]} 55. Ra5 {[%clk 0:00:11]}  Rf4+ {[%clk 0:00:05]} 56. Kg2 {[%clk 0:00:11]}  g5 {[%clk 0:00:06]} 57. Ra6+ {[%clk 0:00:11]}  Kf7 {[%clk 0:00:07]} 58. Ra5 {[%clk 0:00:12]}  Kg6 {[%clk 0:00:08]} 59. Kg3 {[%clk 0:00:12]}  Rg4+ {[%clk 0:00:08]} 60. Kf3 {[%clk 0:00:12]}  Rf4+ {[%clk 0:00:08]} 61. Kg3 {[%clk 0:00:13]}  Rb4 {[%clk 0:00:09]} 62. Rc5 {[%clk 0:00:13]}  Rb3+ {[%clk 0:00:09]} 63. Kg2 {[%clk 0:00:13]}  h4 {[%clk 0:00:10]} 64. h3 {[%clk 0:00:14]}  Rb2+ {[%clk 0:00:09]} 65. Kg1 {[%clk 0:00:14]}  Kf7 {[%clk 0:00:06]} 66. Rc6 {[%clk 0:00:14]}  Rd2 {[%clk 0:00:04]} 67. Rb6 {[%clk 0:00:14]}  Kg6 {[%clk 0:00:04]} 68. Rb5 {[%clk 0:00:14]}  Re2 {[%clk 0:00:04]} 69. Rc5 {[%clk 0:00:14]}  Re5 {[%clk 0:00:05]} 70. Rc4 {[%clk 0:00:14]}  Kf5 {[%clk 0:00:06]} 71. Kg2 {[%clk 0:00:14]}  Re4 {[%clk 0:00:07]} 72. Rc6 {[%clk 0:00:14]}  Ke5 {[%clk 0:00:07]} 73. Ra6 {[%clk 0:00:13]}  f5 {[%clk 0:00:07]} 74. Kf3 {[%clk 0:00:12]}  g4+ {[%clk 0:00:07]} 75. hxg4 {[%clk 0:00:12]}  fxg4+ {[%clk 0:00:07]} 76. Kg2 {[%clk 0:00:13]}  Re2+ {[%clk 0:00:08]} 77. Kg1 {[%clk 0:00:14]}  Rb2 {[%clk 0:00:07]} 78. Ra3 {[%clk 0:00:14]}  Kf5 {[%clk 0:00:07]} 79. Ra5+ {[%clk 0:00:14]}  Kf4 {[%clk 0:00:08]} 80. Ra8 {[%clk 0:00:14]}  Rb1+ {[%clk 0:00:07]} 81. Kf2 {[%clk 0:00:14]}  g3+ {[%clk 0:00:07]} 82. Kg2 {[%clk 0:00:14]}  Rb2+ {[%clk 0:00:08]} 83. Kg1 {[%clk 0:00:15]}  h3 {[%clk 0:00:08]} 84. Ra1 {[%clk 0:00:15]}  Rd2 {[%clk 0:00:06]} 85. Re1 {[%clk 0:00:14]}  Kf3 {[%clk 0:00:06]} 86. Rf1+ {[%clk 0:00:13]}  Ke2 {[%clk 0:00:06]} 87. Ra1 {[%clk 0:00:11]}  Rd1+ {[%clk 0:00:07]} 0-1


[Site "https://www.chess.com"]

[Event "Titled Tuesday Blitz May 16 Early 2023"]
[White "Ivic, Velimir"]
[Black "Karthik Rajaa"]
[WhiteFideId "950122"]
[BlackFideId "25035215"]
[WhiteElo "2563"]
[BlackElo "2215"]
[Result "1-0"]
[Round "07"]
[TimeControl "180+2"]
[Date "2023.05.16"]
[WhiteClock "0:00:13"]
[BlackClock "0:00:04"]

1. e4 {[%clk 0:03:00]}  c6 {[%clk 0:02:59]} 2. Nc3 {[%clk 0:02:59]}  d5 {[%clk 0:03:00]} 3. Nf3 {[%clk 0:03:00]}  Bg4 {[%clk 0:02:59]} 4. h3 {[%clk 0:03:01]}  Bxf3 {[%clk 0:02:59]} 5. Qxf3 {[%clk 0:03:02]}  e6 {[%clk 0:03:00]} 6. g3 {[%clk 0:03:01]}  Nf6 {[%clk 0:02:55]} 7. Bg2 {[%clk 0:03:01]}  Bb4 {[%clk 0:02:55]} 8. e5 {[%clk 0:02:57]}  Nfd7 {[%clk 0:02:50]} 9. Qg4 {[%clk 0:02:57]}  Bf8 {[%clk 0:02:50]} 10. f4 {[%clk 0:02:35]}  h5 {[%clk 0:02:41]} 11. Qe2 {[%clk 0:02:33]}  g6 {[%clk 0:02:36]} 12. Nd1 {[%clk 0:02:29]}  c5 {[%clk 0:02:34]} 13. d3 {[%clk 0:02:29]}  Nc6 {[%clk 0:02:34]} 14. c3 {[%clk 0:02:29]}  Be7 {[%clk 0:02:14]} 15. O-O {[%clk 0:02:28]}  Qc7 {[%clk 0:01:38]} 16. Ne3 {[%clk 0:02:26]}  O-O-O {[%clk 0:01:34]} 17. c4 {[%clk 0:02:16]}  Nb6 {[%clk 0:01:20]} 18. cxd5 {[%clk 0:02:06]}  Nxd5 {[%clk 0:01:12]} 19. Nxd5 {[%clk 0:02:05]}  exd5 {[%clk 0:01:12]} 20. Be3 {[%clk 0:02:05]}  Kb8 {[%clk 0:00:56]} 21. Rfc1 {[%clk 0:02:03]}  Qb6 {[%clk 0:00:56]} 22. b4 {[%clk 0:02:01]}  Nd4 {[%clk 0:00:49]} 23. Qf2 {[%clk 0:02:00]}  Qxb4 {[%clk 0:00:45]} 24. Rab1 {[%clk 0:01:55]}  Qa4 {[%clk 0:00:43]} 25. Qb2 {[%clk 0:01:19]}  Qa6 {[%clk 0:00:38]} 26. Bxd4 {[%clk 0:01:11]}  cxd4 {[%clk 0:00:39]} 27. Qxd4 {[%clk 0:01:12]}  Rd7 {[%clk 0:00:19]} 28. e6 {[%clk 0:01:02]}  Rdd8 {[%clk 0:00:20]} 29. exf7 {[%clk 0:00:47]}  Bf6 {[%clk 0:00:20]} 30. Qb4 {[%clk 0:00:42]}  Qb6+ {[%clk 0:00:16]} 31. Qxb6 {[%clk 0:00:40]}  axb6 {[%clk 0:00:17]} 32. Rb5 {[%clk 0:00:37]}  Bd4+ {[%clk 0:00:17]} 33. Kf1 {[%clk 0:00:37]}  Bc5 {[%clk 0:00:15]} 34. d4 {[%clk 0:00:37]}  Bxd4 {[%clk 0:00:16]} 35. Rxd5 {[%clk 0:00:35]}  Rxd5 {[%clk 0:00:14]} 36. Bxd5 {[%clk 0:00:36]}  Bc5 {[%clk 0:00:14]} 37. Re1 {[%clk 0:00:34]}  Kc7 {[%clk 0:00:13]} 38. Re8 {[%clk 0:00:34]}  Rf8 {[%clk 0:00:14]} 39. Kg2 {[%clk 0:00:21]}  Kd7 {[%clk 0:00:14]} 40. Bc4 {[%clk 0:00:18]}  Kc7 {[%clk 0:00:06]} 41. a4 {[%clk 0:00:18]}  Kd7 {[%clk 0:00:04]} 42. g4 {[%clk 0:00:18]}  hxg4 {[%clk 0:00:04]} 43. hxg4 {[%clk 0:00:19]}  Kc7 {[%clk 0:00:04]} 44. g5 {[%clk 0:00:15]}  b5 {[%clk 0:00:05]} 45. axb5 {[%clk 0:00:15]}  Kb6 {[%clk 0:00:05]} 46. Kf3 {[%clk 0:00:13]}  Ka5 {[%clk 0:00:05]} 47. f5 {[%clk 0:00:12]}  gxf5 {[%clk 0:00:05]} 48. g6 {[%clk 0:00:13]}  Kb4 {[%clk 0:00:04]} 49. g7 {[%clk 0:00:13]} 1-0


[Site "https://www.chess.com"]

[Event "Titled Tuesday Blitz May 16 Early 2023"]
[White "Sychev, Klementy"]
[Black "Dimitrov, Atanas"]
[WhiteFideId "4114060"]
[BlackFideId "2901315"]
[WhiteElo "2583"]
[BlackElo "2722"]
[Result "1-0"]
[Round "07"]
[TimeControl "180+2"]
[Date "2023.05.16"]
[WhiteClock "0:00:44"]
[BlackClock "0:00:27"]

1. e4 {[%clk 0:03:00]}  c5 {[%clk 0:03:00]} 2. Nf3 {[%clk 0:02:59]}  d6 {[%clk 0:03:00]} 3. d4 {[%clk 0:03:00]}  cxd4 {[%clk 0:03:01]} 4. Nxd4 {[%clk 0:03:00]}  Nf6 {[%clk 0:03:02]} 5. Nc3 {[%clk 0:03:01]}  g6 {[%clk 0:03:02]} 6. Be3 {[%clk 0:02:59]}  Bg7 {[%clk 0:03:03]} 7. f3 {[%clk 0:02:59]}  Nc6 {[%clk 0:03:03]} 8. Qd2 {[%clk 0:03:00]}  Bd7 {[%clk 0:03:04]} 9. O-O-O {[%clk 0:02:58]}  O-O {[%clk 0:03:03]} 10. g4 {[%clk 0:02:56]}  Ne5 {[%clk 0:03:03]} 11. h4 {[%clk 0:02:55]}  h5 {[%clk 0:03:03]} 12. gxh5 {[%clk 0:02:52]}  Nxh5 {[%clk 0:03:04]} 13. Rg1 {[%clk 0:02:52]}  Rc8 {[%clk 0:03:04]} 14. Bh6 {[%clk 0:02:48]}  e6 {[%clk 0:03:00]} 15. Bxg7 {[%clk 0:02:46]}  Kxg7 {[%clk 0:03:01]} 16. f4 {[%clk 0:02:38]}  Nc4 {[%clk 0:02:45]} 17. Bxc4 {[%clk 0:02:38]}  Rxc4 {[%clk 0:02:46]} 18. Nf3 {[%clk 0:02:32]}  Bc6 {[%clk 0:02:34]} 19. f5 {[%clk 0:01:03]}  Qf6 {[%clk 0:01:49]} 20. Nd4 {[%clk 0:01:02]}  Rh8 {[%clk 0:01:01]} 21. Nxe6+ {[%clk 0:00:58]}  fxe6 {[%clk 0:01:02]} 22. Rxg6+ {[%clk 0:00:57]}  Qxg6 {[%clk 0:00:57]} 23. fxg6 {[%clk 0:00:58]}  Kxg6 {[%clk 0:00:53]} 24. Rf1 {[%clk 0:00:45]}  Ng7 {[%clk 0:00:28]} 25. Qg5+ {[%clk 0:00:44]}  Kh7 {[%clk 0:00:27]} 26. Rf7 {[%clk 0:00:44]} 1-0


[Site "https://www.chess.com"]

[Event "Titled Tuesday Blitz May 16 Early 2023"]
[White "Papasimakopoulos, Alexandros"]
[Black "Bharath Subramaniyam H"]
[WhiteFideId "4244125"]
[BlackFideId "46634827"]
[WhiteElo "2359"]
[BlackElo "2400"]
[Result "1-0"]
[Round "07"]
[TimeControl "180+2"]
[Date "2023.05.16"]
[WhiteClock "0:00:09"]
[BlackClock "0:00:07"]

1. d4 {[%clk 0:03:00]}  Nf6 {[%clk 0:02:57]} 2. c4 {[%clk 0:03:01]}  b6 {[%clk 0:02:55]} 3. f3 {[%clk 0:02:58]}  Nc6 {[%clk 0:02:54]} 4. d5 {[%clk 0:02:56]}  Ne5 {[%clk 0:02:53]} 5. e4 {[%clk 0:02:57]}  e6 {[%clk 0:02:52]} 6. Be3 {[%clk 0:02:55]}  Bc5 {[%clk 0:02:44]} 7. Qd2 {[%clk 0:02:38]}  O-O {[%clk 0:02:41]} 8. Nc3 {[%clk 0:02:37]}  Re8 {[%clk 0:02:36]} 9. Nh3 {[%clk 0:02:12]}  Ba6 {[%clk 0:02:32]} 10. Bxc5 {[%clk 0:02:08]}  bxc5 {[%clk 0:02:32]} 11. b3 {[%clk 0:02:09]}  exd5 {[%clk 0:02:27]} 12. Nxd5 {[%clk 0:01:54]}  c6 {[%clk 0:02:18]} 13. Nc3 {[%clk 0:01:36]}  d5 {[%clk 0:02:13]} 14. cxd5 {[%clk 0:01:36]}  Bxf1 {[%clk 0:02:12]} 15. Kxf1 {[%clk 0:01:37]}  Qa5 {[%clk 0:02:00]} 16. Rd1 {[%clk 0:01:29]}  Rad8 {[%clk 0:01:58]} 17. Nf4 {[%clk 0:01:27]}  c4 {[%clk 0:01:53]} 18. d6 {[%clk 0:00:58]}  cxb3 {[%clk 0:01:39]} 19. axb3 {[%clk 0:00:59]}  Qb4 {[%clk 0:01:38]} 20. Kf2 {[%clk 0:00:52]}  Qxb3 {[%clk 0:01:27]} 21. Rb1 {[%clk 0:00:38]}  Qa3 {[%clk 0:01:24]} 22. Rhd1 {[%clk 0:00:24]}  Nc4 {[%clk 0:01:21]} 23. Qd4 {[%clk 0:00:24]}  Nxd6 {[%clk 0:01:07]} 24. Kg1 {[%clk 0:00:24]}  Nb7 {[%clk 0:00:58]} 25. Qc4 {[%clk 0:00:24]}  Na5 {[%clk 0:00:55]} 26. Qb4 {[%clk 0:00:18]}  Rxd1+ {[%clk 0:00:47]} 27. Nxd1 {[%clk 0:00:19]}  Qxb4 {[%clk 0:00:46]} 28. Rxb4 {[%clk 0:00:19]}  Nd7 {[%clk 0:00:36]} 29. Ra4 {[%clk 0:00:18]}  Re5 {[%clk 0:00:35]} 30. Nc3 {[%clk 0:00:17]}  Nb6 {[%clk 0:00:34]} 31. Ra1 {[%clk 0:00:17]}  Nbc4 {[%clk 0:00:33]} 32. Nd3 {[%clk 0:00:17]}  Re8 {[%clk 0:00:33]} 33. Nb2 {[%clk 0:00:17]}  Nb3 {[%clk 0:00:28]} 34. Ra2 {[%clk 0:00:13]}  Nc1 {[%clk 0:00:24]} 35. Ra1 {[%clk 0:00:11]}  Nxb2 {[%clk 0:00:23]} 36. Rxc1 {[%clk 0:00:12]}  Rb8 {[%clk 0:00:22]} 37. Ra1 {[%clk 0:00:12]}  Rb7 {[%clk 0:00:19]} 38. Ra6 {[%clk 0:00:12]}  Rc7 {[%clk 0:00:19]} 39. Kf1 {[%clk 0:00:10]}  Nd3 {[%clk 0:00:18]} 40. Na4 {[%clk 0:00:09]}  Nb4 {[%clk 0:00:18]} 41. Ra5 {[%clk 0:00:10]}  Kf8 {[%clk 0:00:18]} 42. Ke2 {[%clk 0:00:09]}  Ke7 {[%clk 0:00:18]} 43. Nc5 {[%clk 0:00:09]}  Kd6 {[%clk 0:00:18]} 44. Nb3 {[%clk 0:00:10]}  c5 {[%clk 0:00:17]} 45. Kd2 {[%clk 0:00:09]}  c4 {[%clk 0:00:17]} 46. Nd4 {[%clk 0:00:07]}  c3+ {[%clk 0:00:17]} 47. Kc1 {[%clk 0:00:07]}  c2 {[%clk 0:00:16]} 48. Nb5+ {[%clk 0:00:08]}  Kc6 {[%clk 0:00:11]} 49. Nxc7 {[%clk 0:00:09]}  Kxc7 {[%clk 0:00:09]} 50. Rxa7+ {[%clk 0:00:09]}  Kd6 {[%clk 0:00:10]} 51. Rxf7 {[%clk 0:00:09]}  Kc5 {[%clk 0:00:10]} 52. Rxg7 {[%clk 0:00:09]}  Kd4 {[%clk 0:00:11]} 53. Rxh7 {[%clk 0:00:10]}  Kc3 {[%clk 0:00:10]} 54. Rc7+ {[%clk 0:00:10]}  Kb3 {[%clk 0:00:11]} 55. h4 {[%clk 0:00:09]}  Nd3+ {[%clk 0:00:07]} 56. Kd2 {[%clk 0:00:09]} 1-0


[Site "https://www.chess.com"]

[Event "Titled Tuesday Blitz May 16 Early 2023"]
[White "Soham Kamotra"]
[Black "Bacrot, Etienne"]
[WhiteFideId "46647490"]
[BlackFideId "605506"]
[WhiteElo "2209"]
[BlackElo "2672"]
[Result "0-1"]
[Round "07"]
[TimeControl "180+2"]
[Date "2023.05.16"]
[WhiteClock "0:00:00"]
[BlackClock "0:00:32"]

1. c4 {[%clk 0:02:51]}  c6 {[%clk 0:02:59]} 2. Nf3 {[%clk 0:02:48]}  d5 {[%clk 0:02:59]} 3. b3 {[%clk 0:02:49]}  Nf6 {[%clk 0:03:00]} 4. Bb2 {[%clk 0:02:49]}  e6 {[%clk 0:03:00]} 5. e3 {[%clk 0:02:50]}  Nbd7 {[%clk 0:03:01]} 6. Be2 {[%clk 0:02:49]}  Bd6 {[%clk 0:03:01]} 7. O-O {[%clk 0:02:50]}  O-O {[%clk 0:03:01]} 8. Nc3 {[%clk 0:02:46]}  e5 {[%clk 0:03:01]} 9. d3 {[%clk 0:02:44]}  Re8 {[%clk 0:03:00]} 10. e4 {[%clk 0:02:42]}  d4 {[%clk 0:02:59]} 11. Nb1 {[%clk 0:02:42]}  Nf8 {[%clk 0:02:59]} 12. Na3 {[%clk 0:02:34]}  h6 {[%clk 0:02:50]} 13. Nc2 {[%clk 0:02:33]}  g5 {[%clk 0:02:49]} 14. a3 {[%clk 0:02:23]}  a5 {[%clk 0:02:46]} 15. b4 {[%clk 0:02:22]}  a4 {[%clk 0:02:46]} 16. Nd2 {[%clk 0:02:20]}  b5 {[%clk 0:02:42]} 17. Re1 {[%clk 0:02:13]}  Ng6 {[%clk 0:02:41]} 18. Bf1 {[%clk 0:01:58]}  Nf4 {[%clk 0:02:40]} 19. g3 {[%clk 0:01:38]}  Nh3+ {[%clk 0:02:39]} 20. Bxh3 {[%clk 0:01:23]}  Bxh3 {[%clk 0:02:38]} 21. c5 {[%clk 0:01:23]}  Bc7 {[%clk 0:02:38]} 22. Qf3 {[%clk 0:01:10]}  Re6 {[%clk 0:02:14]} 23. Nf1 {[%clk 0:01:05]}  Qd7 {[%clk 0:02:11]} 24. Ra2 {[%clk 0:00:49]}  Kg7 {[%clk 0:02:10]} 25. Qe2 {[%clk 0:00:45]}  g4 {[%clk 0:01:52]} 26. Bc1 {[%clk 0:00:44]}  Rh8 {[%clk 0:01:49]} 27. Qd2 {[%clk 0:00:34]}  Nh7 {[%clk 0:01:32]} 28. Qd1 {[%clk 0:00:30]}  Rf6 {[%clk 0:01:24]} 29. Re2 {[%clk 0:00:24]}  Nf8 {[%clk 0:00:52]} 30. Ne1 {[%clk 0:00:25]}  Ne6 {[%clk 0:00:52]} 31. Bd2 {[%clk 0:00:17]}  Kf8 {[%clk 0:00:51]} 32. Qc1 {[%clk 0:00:17]}  Bd8 {[%clk 0:00:49]} 33. Rc2 {[%clk 0:00:17]}  h5 {[%clk 0:00:49]} 34. f3 {[%clk 0:00:16]}  gxf3 {[%clk 0:00:47]} 35. Rf2 {[%clk 0:00:16]}  Bg4 {[%clk 0:00:47]} 36. Qd1 {[%clk 0:00:14]}  h4 {[%clk 0:00:46]} 37. Nxf3 {[%clk 0:00:12]}  Ng7 {[%clk 0:00:42]} 38. Bg5 {[%clk 0:00:08]}  Rxf3 {[%clk 0:00:41]} 39. Rxf3 {[%clk 0:00:08]}  Bxf3 {[%clk 0:00:39]} 40. Qxf3 {[%clk 0:00:09]}  Bxg5 {[%clk 0:00:39]} 41. Rf2 {[%clk 0:00:08]}  f6 {[%clk 0:00:37]} 42. g4 {[%clk 0:00:07]}  Ne6 {[%clk 0:00:36]} 43. h3 {[%clk 0:00:07]}  Nf4 {[%clk 0:00:36]} 44. Kh2 {[%clk 0:00:06]}  Qe6 {[%clk 0:00:37]} 45. Qd1 {[%clk 0:00:05]}  Qb3 {[%clk 0:00:34]} 46. Qxb3 {[%clk 0:00:05]}  axb3 {[%clk 0:00:35]} 47. Rb2 {[%clk 0:00:05]}  Nxd3 {[%clk 0:00:33]} 48. Rxb3 {[%clk 0:00:05]}  Nf2 {[%clk 0:00:31]} 49. Kg2 {[%clk 0:00:03]}  Nxe4 {[%clk 0:00:31]} 50. a4 {[%clk 0:00:03]}  bxa4 {[%clk 0:00:31]} 51. Ra3 {[%clk 0:00:03]}  Nc3 {[%clk 0:00:32]} 52. Kf3 {[%clk 0:00:00]}  Ke7 {[%clk 0:00:32]} 0-1


[Site "https://www.chess.com"]

[Event "Titled Tuesday Blitz May 16 Early 2023"]
[White "Salinas Herrera, Pablo"]
[Black "RobertDowneyJr0111"]
[WhiteFideId "3407128"]
[WhiteElo "2546"]
[BlackElo "2633"]
[Result "1-0"]
[Round "07"]
[TimeControl "180+2"]
[Date "2023.05.16"]
[WhiteClock "0:00:47"]
[BlackClock "0:00:06"]

1. e4 {[%clk 0:03:00]}  e5 {[%clk 0:02:59]} 2. Nf3 {[%clk 0:03:00]}  Nc6 {[%clk 0:03:00]} 3. Bc4 {[%clk 0:03:00]}  Bc5 {[%clk 0:03:00]} 4. O-O {[%clk 0:03:00]}  Nf6 {[%clk 0:02:59]} 5. d3 {[%clk 0:03:00]}  d6 {[%clk 0:02:59]} 6. c3 {[%clk 0:03:01]}  a6 {[%clk 0:02:59]} 7. a4 {[%clk 0:03:01]}  Ba7 {[%clk 0:03:00]} 8. b4 {[%clk 0:03:02]}  O-O {[%clk 0:03:00]} 9. h3 {[%clk 0:03:02]}  Ne7 {[%clk 0:03:00]} 10. Re1 {[%clk 0:03:01]}  Ng6 {[%clk 0:03:00]} 11. Nbd2 {[%clk 0:03:01]}  h6 {[%clk 0:02:58]} 12. Nf1 {[%clk 0:03:02]}  Re8 {[%clk 0:02:58]} 13. Be3 {[%clk 0:03:02]}  Bxe3 {[%clk 0:02:57]} 14. Nxe3 {[%clk 0:03:02]}  c6 {[%clk 0:02:54]} 15. Qc2 {[%clk 0:03:01]}  Nh7 {[%clk 0:02:45]} 16. d4 {[%clk 0:02:59]}  Qf6 {[%clk 0:02:45]} 17. dxe5 {[%clk 0:02:26]}  dxe5 {[%clk 0:02:43]} 18. Nf5 {[%clk 0:02:24]}  Nf4 {[%clk 0:02:05]} 19. Kh2 {[%clk 0:02:18]}  g6 {[%clk 0:00:57]} 20. Nxh6+ {[%clk 0:02:13]}  Kg7 {[%clk 0:00:57]} 21. Nxf7 {[%clk 0:02:13]}  Nxh3 {[%clk 0:00:49]} 22. Qd2 {[%clk 0:01:48]}  Nf4 {[%clk 0:00:20]} 23. g3 {[%clk 0:01:48]}  Ne6 {[%clk 0:00:18]} 24. N3xe5 {[%clk 0:01:33]}  Nhg5 {[%clk 0:00:17]} 25. f4 {[%clk 0:01:33]}  Nxf7 {[%clk 0:00:16]} 26. Ng4 {[%clk 0:01:08]}  Qd8 {[%clk 0:00:16]} 27. Qe3 {[%clk 0:01:06]}  Neg5 {[%clk 0:00:12]} 28. Rad1 {[%clk 0:00:58]}  Qe7 {[%clk 0:00:10]} 29. Qd4+ {[%clk 0:00:56]}  Kf8 {[%clk 0:00:08]} 30. fxg5 {[%clk 0:00:47]}  Bxg4 {[%clk 0:00:08]} 31. Rf1 {[%clk 0:00:47]}  Bxd1 {[%clk 0:00:06]} 32. Qh8# {[%clk 0:00:47]} 1-0


[Site "https://www.chess.com"]